bitfinex/quotes_SOLUSD_20250415
["timestamp","ask_amount","ask_price","bid_price","bid_amount"]
[1744678895610,0.063,129.16,129.12,10.12717966]
[1744678896406,17.93247966,129.16,129.11,10.12717966]
[1744678896606,10.12717966,129.13,129.08,10.12717966]
[1744678896813,18.933972,129.15,129.08,10.12717966]
[1744678897017,10.12717966,129.13,129.08,10.12717966]
[1744678897631,10.12717966,129.14,129.09,10.12717966]
[1744678897827,7.7441,129.13,129.09,10.12717966]
[1744678898029,7.7437,129.14,129.1,10.12717966]
[1744678898414,17.87087966,129.14,129.09,17.87367966]
[1744678898631,17.87087966,129.14,129.09,10.12717966]
[1744678900536,10.12717966,129.13,129.06,11.06]
[1744678900832,10.12717966,129.12,129.08,10.12717966]
[1744678901134,10.12717966,129.13,129.08,10.12717966]
[1744678901737,27.1025,129.14,129.08,10.12717966]
[1744678901944,10.12717966,129.13,129.08,10.12717966]
[1744678902744,10.12717966,129.09,129.04,96.0954312]
[1744678903049,10.12717966,129.09,129.04,23.22261086]
[1744678903232,10.12717966,129.08,129.03,10.12717966]
[1744678903542,10.12717966,129.08,129.04,10.12717966]
[1744678903744,10.12717966,129.09,129.04,17.87657966]
[1744678904342,10.12717966,129.09,129.04,7.7494]
[1744678904643,10.12717966,129.09,129.04,10.12717966]
[1744678904957,10.12717966,129.08,129.01,1.5541]
[1744678905120,10.12717966,129.05,129.01,0.03]
[1744678905320,10.12717966,129.03,129.01,0.03]
[1744678905933,17.87787966,129.02,129.01,0.03]
[1744678906737,18.1622028,129.02,129.01,0.03]
[1744678907146,36.81185166,129.02,129.01,0.03]
[1744678907455,37.0961748,129.02,129.01,0.03]
[1744678907620,37.0961748,129.02,129.0,0.03]
[1744678907621,10.69582594,129.01,129.0,0.03]
[1744678908245,18.44712594,129.01,129.0,0.03]
[1744678908451,37.0967748,129.01,129.0,0.0001]
[1744678908643,47.22395446,129.01,128.99,0.03]
[1744678908957,31.8830056,129.0,128.99,0.03]
[1744678911048,39.6349056,129.0,128.99,0.03]
[1744678913629,58.28455446,129.0,128.99,0.03]
[1744678913831,58.28455446,129.0,128.94,0.03]
[1744678913832,0.14216157,128.96,128.94,0.03]
[1744678914167,1.92412314,128.9,128.86,30.0]
[1744678914352,61.14295166,128.87,128.86,30.0]
[1744678914534,61.14295166,128.87,128.86,30.03]
[1744678914843,61.14295166,128.87,128.78,10.12717966]
[1744678914844,0.28432314,128.82,128.77,71.65604058]
[1744678915035,10.4115028,128.78,128.77,71.65604058]
[1744678915229,29.3454748,128.78,128.77,71.65604058]
[1744678915636,37.1105748,128.78,128.77,71.65604058]
[1744678915848,36.82625166,128.78,128.77,71.65604058]
[1744678916154,10.4115028,128.78,128.77,71.65604058]
[1744678916364,29.3454748,128.78,128.77,71.65604058]
[1744678916660,37.1105748,128.78,128.77,71.65604058]
[1744678916863,29.06115166,128.78,128.77,71.65604058]
[1744678917155,27.3626808,128.78,128.77,71.65604058]
[1744678917452,27.3626808,128.78,128.73,24.0705808]
[1744678917653,0.28432314,128.86,128.79,26.0]
[1744678917835,12.6994,128.9,128.84,16.3026808]
[1744678918032,27.3626808,128.9,128.85,16.3026808]
[1744678918248,16.3026808,128.89,128.85,16.3026808]
[1744678918647,15.78243883,128.89,128.86,16.3026808]
[1744678919142,11.91248006,128.88,128.86,16.3026808]
[1744678919342,11.91248006,128.88,128.87,16.3026808]
[1744678919857,11.91248006,128.89,128.86,16.3026808]
[1744678920150,11.91248006,128.89,128.87,16.3026808]
[1744678920349,11.91248006,128.89,128.82,18.70506231]
[1744678920653,16.3026808,128.91,128.86,16.3026808]
[1744678920951,16.58700394,128.93,128.88,16.3026808]
[1744678921148,0.28432314,128.93,128.89,16.3026808]
[1744678921356,16.58700394,128.93,128.88,16.3026808]
[1744678921663,16.58700394,128.92,128.87,16.3026808]
[1744678922741,16.3026808,128.93,128.89,16.3026808]
[1744678922949,11.06,128.94,128.9,16.3026808]
[1744678923746,11.06,128.94,128.9,24.0605808]
[1744678923946,16.3026808,128.96,128.91,16.3026808]
[1744678924136,0.28432314,128.95,128.91,16.3026808]
[1744678924341,16.58700394,128.95,128.9,16.3026808]
[1744678924773,16.3026808,128.94,128.89,24.0610808]
[1744678925065,0.28432314,128.95,128.91,16.3026808]
[1744678925451,16.58700394,128.95,128.9,16.3026808]
[1744678925843,16.58700394,128.95,128.9,24.0603808]
[1744678926143,0.14216157,128.97,128.92,16.3026808]
[1744678926363,0.28432314,128.97,128.93,16.3026808]
[1744678926853,11.06,128.98,128.94,16.3026808]
[1744678927060,11.06,128.98,128.93,16.3026808]
[1744678927260,11.06,128.98,128.94,16.3026808]
[1744678928459,49.62591317,129.03,128.97,16.3026808]
[1744678928460,0.28432314,129.01,128.97,16.3026808]
[1744678928648,0.28432314,129.01,128.95,16.3026808]
[1744678928649,16.3026808,129.0,128.95,16.3026808]
[1744678928834,16.58700394,129.01,128.96,16.3026808]
[1744678929245,0.28432314,129.01,128.97,16.3026808]
[1744678930444,24.33830394,129.01,128.97,16.3026808]
[1744678931167,24.33830394,129.01,128.96,16.3026808]
[1744678931465,16.58700394,128.99,128.92,11.06]
[1744678931674,16.3026808,128.98,128.93,16.3026808]
[1744678931874,24.0560808,128.98,128.93,16.3026808]
[1744678932345,24.0560808,128.98,128.89,83.0]
[1744678932346,16.3026808,128.96,128.89,83.0]
[1744678932673,16.3026808,128.94,128.89,16.3026808]
[1744678933353,16.3026808,128.94,128.87,7.7597]
[1744678933557,16.3026808,128.94,128.89,16.3026808]
[1744678933872,24.0571808,128.96,128.91,16.3026808]
[1744678934065,7.7545,128.96,128.92,16.3026808]
[1744678934267,24.0571808,128.96,128.92,16.3026808]
[1744678934467,24.0571808,128.96,128.91,16.3026808]
[1744678934665,24.0571808,128.96,128.92,16.3026808]
[1744678934858,24.0571808,128.96,128.91,16.3026808]
[1744678935272,24.0571808,128.96,128.91,24.0599808]
[1744678935970,11.06,128.97,128.94,16.3026808]
[1744678936179,11.06,129.01,128.96,16.3026808]
[1744678936376,11.06,129.01,128.91,90.7573]
[1744678936377,11.06,129.01,128.98,16.3026808]
[1744678936566,24.0528808,129.03,128.98,16.3026808]
[1744678936967,7.7502,129.03,128.99,16.3026808]
[1744678937486,24.0528808,129.03,128.98,16.3026808]
[1744678937972,24.0528808,129.03,128.93,16.3026808]
[1744678937973,16.3026808,128.99,128.93,16.3026808]
[1744678938163,16.44484237,129.0,128.94,16.3026808]
[1744678938478,16.44484237,129.0,128.95,16.3026808]
[1744678939357,7.7525,128.99,128.95,16.3026808]
[1744678939582,24.0551808,128.99,128.93,16.3026808]
[1744678940681,24.0551808,128.99,128.94,16.3026808]
[1744678941078,7.7537,128.97,128.93,16.3026808]
[1744678942492,16.3026808,128.96,128.91,83.0]
[1744678942662,7.7533,128.98,128.95,16.3026808]
[1744678942987,7.7533,128.98,128.93,16.3026808]
[1744678943778,7.7533,128.98,128.93,24.0586808]
[1744678944791,7.7533,128.98,128.93,16.3026808]
[1744678945079,16.3026808,128.96,128.89,90.7581]
[1744678945277,16.3026808,128.96,128.91,16.3026808]
[1744678945577,16.3026808,128.93,128.88,16.3026808]
[1744678945890,16.58700394,128.91,128.85,7.7607]
[1744678946192,16.44484237,128.91,128.86,16.3026808]
[1744678946691,16.44484237,128.92,128.87,16.3026808]
[1744678946859,24.20204237,128.92,128.87,16.3026808]
[1744678947271,16.3026808,128.93,128.88,16.3026808]
[1744678947467,7.7558,128.94,128.9,16.3026808]
[1744678947781,18.815,128.95,128.9,16.3026808]
[1744678947982,35.1176808,128.95,128.9,16.3026808]
[1744678949177,11.06,128.95,128.92,16.3026808]
[1744678949474,18.815,128.95,128.88,83.0]
[1744678949676,35.1176808,128.95,128.88,83.0]
[1744678949886,35.1176808,128.95,128.9,16.3026808]
[1744678950189,18.815,128.95,128.9,16.3026808]
[1744678950381,18.815,128.95,128.91,16.3026808]
[1744678950885,11.06,128.95,128.91,16.3026808]
[1744678952186,18.8149,128.95,128.91,16.3026808]
[1744678952692,18.8149,128.95,128.89,16.3026808]
[1744678952693,16.58700394,128.94,128.89,16.3026808]
[1744678952864,0.28432314,128.94,128.89,16.3026808]
[1744678953263,11.06,128.95,128.91,16.3026808]
[1744678953490,0.063,128.97,128.94,16.3026808]
[1744678954181,0.063,128.97,128.93,16.3026808]
[1744678954382,7.8168,128.97,128.93,16.3026808]
[1744678954581,16.58700394,128.96,128.91,16.3026808]
[1744678954797,0.28432314,128.94,128.89,16.3026808]
[1744678955487,0.28432314,128.94,128.9,16.3026808]
[1744678955994,0.28432314,128.94,128.88,18.8188]
[1744678955995,7.7561,128.93,128.88,18.8188]
[1744678956171,16.58700394,128.92,128.87,99.3026808]
[1744678956575,16.3026808,128.91,128.86,16.3026808]
[1744678956781,25.6683808,128.93,128.88,16.3026808]
[1744678956969,9.3657,128.93,128.9,16.3026808]
[1744678957580,7.89666157,128.96,128.92,16.3026808]
[1744678957782,0.063,128.97,128.95,16.3026808]
[1744678958191,0.063,128.97,128.96,16.3026808]
[1744678958489,0.063,128.97,128.95,16.3026808]
[1744678958870,0.063,128.97,128.93,16.3026808]
[1744678959068,0.28432314,128.95,128.91,16.3026808]
[1744678959286,16.3026808,128.96,128.91,16.3026808]
[1744678959491,0.063,128.97,128.93,16.3026808]
[1744678959680,0.063,128.97,128.94,16.3026808]
[1744678961998,7.7543,128.96,128.93,16.3026808]
[1744678962191,7.7543,128.96,128.92,16.3026808]
[1744678962973,7.7543,128.96,128.93,16.3026808]
[1744678963994,7.7543,128.96,128.92,16.3026808]
[1744678964503,7.8169,128.97,128.93,16.3026808]
[1744678964905,7.8169,128.97,128.92,16.3026808]
[1744678966305,35.52097594,128.96,128.91,16.3026808]
[1744678966487,16.3026808,128.95,128.89,16.3026808]
[1744678966812,16.3026808,128.94,128.89,16.3026808]
[1744678967719,24.34310394,128.93,128.89,16.3026808]
[1744678967891,24.34310394,128.93,128.86,83.0]
[1744678968086,16.3026808,128.92,128.87,16.3026808]
[1744678968284,16.3026808,128.91,128.87,16.3026808]
[1744678968514,16.3026808,128.91,128.86,16.3026808]
[1744678968707,6.2123,128.92,128.88,16.3026808]
[1744678969815,13.9696,128.92,128.88,16.3026808]
[1744678970191,30.2722808,128.92,128.87,16.3026808]
[1744678970400,16.58700394,128.91,128.86,16.3026808]
[1744678970593,16.58700394,128.91,128.84,7.7614]
[1744678970594,16.58700394,128.91,128.87,26.0]
[1744678970800,16.58700394,128.91,128.87,42.3026808]
[1744678971003,0.28432314,128.91,128.87,42.3026808]
[1744678971513,19.21829514,128.91,128.87,16.3026808]
[1744678971718,19.21829514,128.91,128.85,16.3026808]
[1744678971719,7.7585,128.89,128.85,16.3026808]
[1744678971921,24.0611808,128.89,128.84,16.3026808]
[1744678972103,0.28432314,128.88,128.84,16.3026808]
[1744678972818,0.28432314,128.86,128.8,13.14878744]
[1744678973016,0.28432314,128.86,128.82,16.3026808]
[1744678973220,16.58700394,128.86,128.81,16.3026808]
[1744678973813,7.7609,128.85,128.81,16.3026808]
[1744678974008,7.7609,128.85,128.82,16.3026808]
[1744678974321,7.7605,128.86,128.83,16.3026808]
[1744678974532,7.7605,128.86,128.8,20.91258744]
[1744678974697,34.95232966,128.81,128.8,0.03]
[1744678974895,46.58097594,128.81,128.8,0.03]
[1744678975197,0.28432314,128.8,128.79,0.03]
[1744678975398,16.58700394,128.8,128.79,0.03]
[1744678975995,7.7639,128.8,128.79,0.03]
[1744678976509,3.975801,128.86,128.79,18.67964886]
[1744678976716,11.736401,128.86,128.79,0.03]
[1744678977011,7.7606,128.86,128.79,0.03]
[1744678977227,7.7606,128.86,128.81,16.3026808]
[1744678977515,7.7606,128.86,128.82,16.3026808]
[1744678977707,0.28432314,128.88,128.84,16.3026808]
[1744678977895,16.3026808,128.87,128.82,16.3026808]
[1744678978102,7.7603,128.86,128.82,16.3026808]
[1744678979104,7.7597,128.87,128.83,16.3026808]
[1744678979422,7.7597,128.87,128.84,16.3026808]
[1744678979618,8.04362314,128.88,128.84,16.3026808]
[1744678979917,24.34630394,128.88,128.83,16.3026808]
[1744678980318,0.28432314,128.84,128.8,42.3026808]
[1744678980516,16.3026808,128.83,128.79,0.03]
[1744678981308,16.58700394,128.82,128.79,0.03]
[1744678981621,16.58700394,128.8,128.79,0.03]
[1744678981826,46.58097594,128.8,128.79,0.03]
[1744678982010,54.34487594,128.8,128.79,0.03]
[1744678982526,38.04219514,128.8,128.79,0.03]
[1744678982724,54.34487594,128.8,128.79,0.03]
[1744678984420,0.28432314,128.78,128.71,85.7826845]
[1744678984724,16.58700394,128.74,128.71,2.7826845]
[1744678985024,11.06,128.73,128.71,2.7826845]
[1744678985321,18.8282,128.73,128.71,2.7826845]
[1744678985898,35.52097594,128.72,128.71,2.7826845]
[1744678986107,16.58700394,128.72,128.71,2.7826845]
[1744678986310,11.06,128.72,128.71,19.0853653]
[1744678986708,11.06,128.72,128.71,2.7826845]
[1744678987127,46.2966528,128.72,128.71,2.7826845]
[1744678987325,18.933972,128.69,128.66,0.03]
[1744678987631,16.3026808,128.67,128.66,0.03]
[1744678987924,46.58097594,128.67,128.66,0.03]
[1744678988100,46.58097594,128.67,128.58,99.3026808]
[1744678988101,46.58097594,128.67,128.59,16.3026808]
[1744678988303,16.3026808,128.63,128.58,16.3026808]
[1744678988606,16.3026808,128.64,128.59,16.3026808]
[1744678988806,16.3026808,128.62,128.54,97.1659]
[1744678989031,16.58700394,128.65,128.6,16.3026808]
[1744678989329,7.7742,128.63,128.59,16.3026808]
[1744678989531,24.0768808,128.63,128.59,16.3026808]
[1744678989733,16.3026808,128.61,128.53,7.7801]
[1744678989928,27.66700394,128.62,128.57,16.3026808]
[1744678990109,16.3026808,128.61,128.56,16.3026808]
[1744678990434,0.28432314,128.6,128.56,16.3026808]
[1744678990905,0.14216157,128.61,128.57,16.3026808]
[1744678991109,16.44484237,128.61,128.56,16.3026808]
[1744678991428,24.0798808,128.58,128.51,90.7813]
[1744678991631,16.3026808,128.57,128.52,16.3026808]
[1744678991835,7.7772,128.58,128.54,16.3026808]
[1744678992021,11.08,128.57,128.53,42.3026808]
[1744678992630,11.08,128.57,128.56,16.3026808]
[1744678993225,11.08,128.57,128.53,26.0]
[1744678993419,11.08,128.57,128.55,16.3026808]
[1744678993732,7.776,128.6,128.56,16.3026808]
[1744678993907,11.08,128.61,128.58,16.3026808]
[1744678994236,11.08,128.67,128.6,16.3026808]
[1744678994423,11.08,128.67,128.63,16.3026808]
[1744678994812,0.28432314,128.66,128.62,16.3026808]
[1744678995018,0.28432314,128.64,128.6,16.3026808]
[1744678995222,24.42161922,128.64,128.59,24.13729608]
[1744678995434,7.774,128.64,128.61,24.13729608]
[1744678995836,7.774,128.64,128.6,24.13729608]
[1744678996034,7.774,128.64,128.61,24.13729608]
[1744678996439,7.91536157,128.65,128.61,24.13729608]
[1744678998227,7.91456157,128.66,128.62,24.13729608]
[1744678998423,7.7719,128.67,128.63,24.13729608]
[1744678999014,24.13729608,128.65,128.6,107.13729608]
[1744678999212,24.13729608,128.65,128.6,24.13729608]
[1744678999433,24.13729608,128.65,128.55,101.64964886]
[1744678999434,7.7736,128.64,128.61,24.13729608]
[1744679000338,7.7732,128.65,128.62,24.13729608]
[1744679000540,8.05682314,128.66,128.62,24.13729608]
[1744679000839,18.99356157,128.68,128.64,24.13729608]
[1744679001242,24.13729608,128.67,128.62,24.13729608]
[1744679001440,7.7724,128.66,128.62,24.13729608]
[1744679001940,31.90969608,128.66,128.61,24.13729608]
[1744679002141,31.90969608,128.66,128.62,24.13729608]
[1744679002324,7.7724,128.66,128.62,24.13729608]
[1744679002736,31.90969608,128.66,128.61,24.13729608]
[1744679003240,31.90969608,128.66,128.62,24.13729608]
[1744679003433,42.98969608,128.66,128.62,24.13729608]
[1744679003630,42.98969608,128.66,128.59,7.7766]
[1744679003835,42.98969608,128.66,128.61,24.13729608]
[1744679004030,18.8524,128.66,128.62,24.13729608]
[1744679004214,13.9246,128.69,128.65,24.13729608]
[1744679004413,18.85,128.7,128.66,24.13729608]
[1744679004614,11.08,128.7,128.67,24.13729608]
[1744679005041,11.08,128.7,128.66,24.13729608]
[1744679005217,11.08,128.7,128.63,83.0]
[1744679005218,11.08,128.7,128.67,24.13729608]
[1744679005421,24.13729608,128.69,128.64,24.13729608]
[1744679005619,18.8501,128.7,128.66,24.13729608]
[1744679006052,18.8501,128.7,128.67,24.13729608]
[1744679006750,11.08,128.7,128.67,24.13729608]
[1744679007042,242.38,128.74,128.68,24.13729608]
[1744679007241,7.7687,128.73,128.69,24.13729608]
[1744679007947,31.90599608,128.73,128.68,24.13729608]
[1744679008333,7.7687,128.73,128.69,24.13729608]
[1744679008538,11.08,128.74,128.72,24.13729608]
[1744679009319,11.08,128.74,128.71,24.13729608]
[1744679010433,18.8475,128.74,128.71,24.13729608]
[1744679011046,18.8475,128.74,128.69,7.7703]
[1744679011238,18.8475,128.74,128.71,24.13729608]
[1744679011931,18.8475,128.74,128.7,24.13729608]
[1744679013145,18.8475,128.74,128.69,7.7704]
[1744679013447,18.8475,128.74,128.68,7.7709]
[1744679013652,24.13729608,128.72,128.67,83.0]
[1744679013849,24.13729608,128.72,128.67,107.13729608]
[1744679014146,24.42161922,128.71,128.67,26.0]
[1744679015253,7.77,128.7,128.67,26.0]
[1744679015932,7.77,128.7,128.66,16.32233214]
[1744679017552,16.60665528,128.69,128.64,16.32233214]
[1744679018747,7.7712,128.68,128.65,16.32233214]
[1744679019751,7.77,128.7,128.66,16.32233214]
[1744679020053,24.09233214,128.7,128.65,16.32233214]
[1744679020252,16.60665528,128.69,128.64,16.32233214]
[1744679020857,0.28432314,128.69,128.64,16.32233214]
[1744679021171,0.28432314,128.69,128.65,16.32233214]
[1744679021330,7.7712,128.68,128.65,16.32233214]
[1744679023839,7.7712,128.68,128.62,7.7745]
[1744679024162,16.32233214,128.65,128.6,16.32233214]
[1744679024326,16.32233214,128.64,128.59,16.32233214]
[1744679025145,16.32233214,128.64,128.58,83.0]
[1744679025361,7.7742,128.63,128.59,16.32233214]
[1744679025539,7.7742,128.63,128.6,16.32233214]
[1744679025739,7.7738,128.64,128.61,16.32233214]
[1744679026261,7.7738,128.64,128.6,16.32233214]
[1744679028641,24.09613214,128.64,128.59,16.32233214]
[1744679029248,19.4337,128.65,128.61,16.32233214]
[1744679029249,27.2067,128.65,128.61,16.32233214]
[1744679029453,43.52903214,128.65,128.6,16.32233214]
[1744679029667,16.60665528,128.64,128.59,16.32233214]
[1744679030371,7.7742,128.63,128.59,16.32233214]
[1744679030542,0.28432314,128.65,128.61,16.32233214]
[1744679030744,16.60665528,128.65,128.6,42.32233214]
[1744679031249,16.46449371,128.65,128.6,42.32233214]
[1744679031661,16.32233214,128.65,128.6,42.32233214]
[1744679031852,7.7736,128.64,128.6,42.32233214]
[1744679032871,11.08,128.66,128.62,16.32233214]
[1744679033164,11.08,128.66,128.59,7.7765]
[1744679033165,18.8526,128.66,128.63,16.32233214]
[1744679034048,18.8526,128.66,128.62,16.32233214]
[1744679034458,16.32233214,128.64,128.59,16.32233214]
[1744679034965,16.32233214,128.65,128.6,16.32233214]
[1744679035274,38.2836,128.66,128.62,16.32233214]
[1744679036070,54.60593214,128.66,128.61,16.32233214]
[1744679037968,18.8526,128.66,128.62,16.32233214]
[1744679038153,6.6661,128.69,128.65,16.32233214]
[1744679038361,7.7714,128.68,128.64,16.32233214]
[1744679038868,25.5167,128.69,128.65,16.32233214]
[1744679039076,17.7461,128.69,128.66,16.32233214]
[1744679039568,25.5168,128.69,128.66,16.32233214]
[1744679040279,11.08,128.69,128.67,16.32233214]
[1744679040570,7.7684,128.73,128.68,16.32233214]
[1744679040770,7.7684,128.73,128.71,16.32233214]
[1744679041570,7.7684,128.73,128.69,16.32233214]
[1744679041958,16.60665528,128.72,128.67,16.32233214]
[1744679042666,43.51113214,128.73,128.64,107.09563214]
[1744679042865,27.1888,128.73,128.69,16.32233214]
[1744679043046,7.7684,128.73,128.69,16.32233214]
[1744679043466,7.7684,128.73,128.7,16.32233214]
[1744679043647,43.51113214,128.73,128.68,16.32233214]
[1744679044065,16.60665528,128.72,128.67,16.32233214]
[1744679044262,16.32233214,128.7,128.65,16.32233214]
[1744679045172,0.56864628,128.72,128.66,16.32233214]
[1744679045376,16.32233214,128.72,128.67,16.32233214]
[1744679045555,7.7688,128.72,128.68,16.32233214]
[1744679045765,7.7684,128.73,128.69,16.32233214]
[1744679046461,16.32233214,128.72,128.68,16.32233214]
[1744679046775,43.51113214,128.73,128.68,16.32233214]
[1744679048071,16.32233214,128.7,128.65,16.32233214]
[1744679048278,19.07613357,128.72,128.64,16.32233214]
[1744679048279,16.32233214,128.69,128.64,16.32233214]
[1744679048573,27.40233214,128.69,128.64,16.32233214]
[1744679048873,11.08,128.69,128.65,16.32233214]
[1744679049174,11.08,128.69,128.67,16.32233214]
[1744679049371,11.08,128.69,128.66,16.32233214]
[1744679050056,7.7712,128.68,128.66,16.32233214]
[1744679050569,24.09353214,128.68,128.61,83.0]
[1744679050776,16.32233214,128.67,128.62,16.32233214]
[1744679050965,16.32233214,128.64,128.56,9.09282768]
[1744679051149,16.32233214,128.63,128.58,16.32233214]
[1744679051351,27.40233214,128.64,128.59,16.32233214]
[1744679051785,11.08,128.64,128.6,16.32233214]
[1744679052079,11.08,128.64,128.62,16.32233214]
[1744679052573,18.8536,128.64,128.62,16.32233214]
[1744679052881,35.17593214,128.64,128.59,16.32233214]
[1744679053471,16.32233214,128.63,128.58,16.32233214]
[1744679053957,7.7748,128.62,128.58,16.32233214]
[1744679054158,16.32233214,128.61,128.56,16.35233214]
[1744679054361,14.221,128.62,128.56,16.35233214]
[1744679054665,49.98043214,128.62,128.57,16.32233214]
[1744679056481,30.54333214,128.62,128.57,16.32233214]
[1744679056661,7.7748,128.62,128.59,16.32233214]
[1744679056978,7.7744,128.63,128.6,16.32233214]
[1744679057176,7.7744,128.63,128.57,7.7778]
[1744679057354,24.09673214,128.63,128.58,16.32233214]
[1744679057861,7.7744,128.63,128.59,16.32233214]
[1744679059582,7.7744,128.63,128.6,16.32233214]
[1744679059783,7.7744,128.63,128.59,16.32233214]
[1744679062082,18.8536,128.64,128.59,16.32233214]
[1744679062262,18.8536,128.64,128.61,16.32233214]
[1744679064480,35.17593214,128.64,128.57,116.7776]
[1744679064677,16.32233214,128.63,128.58,16.32233214]
[1744679064879,7.7748,128.62,128.58,16.32233214]
[1744679065059,16.32233214,128.61,128.56,0.03]
[1744679065378,16.32233214,128.6,128.56,0.03]
[1744679065765,18.16375528,128.61,128.56,16.35233214]
[1744679067182,7.776,128.6,128.56,16.35233214]
[1744679069684,7.776,128.6,128.56,0.03]
[1744679070487,7.776,128.6,128.56,16.35233214]
[1744679073199,7.776,128.6,128.56,10.24702585]
[1744679073990,9.3328,128.61,128.58,10.21702585]
[1744679074590,9.3328,128.61,128.57,10.21702585]
[1744679077072,11.08,128.64,128.6,10.21702585]
[1744679077277,29.07082585,128.64,128.59,10.21702585]
[1744679078297,48.50482585,128.64,128.59,10.21702585]
[1744679078591,10.21702585,128.63,128.58,10.21702585]
[1744679078898,10.21702585,128.62,128.57,10.21702585]
[1744679079188,7.7754,128.61,128.57,10.21702585]
[1744679079394,49.16364886,128.64,128.6,10.21702585]
[1744679079576,7.7742,128.63,128.6,10.21702585]
[1744679080774,17.99122585,128.63,128.58,10.21702585]
[1744679080984,37.42672585,128.63,128.58,10.21702585]
[1744679081572,27.2097,128.63,128.58,10.21702585]
[1744679081971,37.42672585,128.63,128.58,10.21702585]
[1744679082173,37.42672585,128.63,128.56,7.8082]
[1744679082377,37.42672585,128.63,128.58,10.21702585]
[1744679082685,27.2097,128.63,128.59,10.21702585]
[1744679085193,7.7742,128.63,128.59,10.21702585]
[1744679087498,56.07637471,128.63,128.58,10.21702585]
[1744679092703,45.85934886,128.63,128.58,10.21702585]
[1744679094610,56.07637471,128.63,128.58,10.21702585]
[1744679095611,7.7754,128.61,128.57,10.21702585]
[1744679099015,11.08,128.64,128.59,10.21702585]
[1744679099189,18.8537,128.64,128.6,10.21702585]
[1744679099392,18.8537,128.64,128.59,10.21702585]
[1744679100506,29.07072585,128.64,128.59,10.21702585]
[1744679100709,48.50472585,128.64,128.59,10.21702585]
[1744679101007,10.21702585,128.61,128.56,10.24702585]
[1744679101208,10.21702585,128.61,128.56,0.03]
[1744679101424,10.21702585,128.61,128.56,10.24702585]
[1744679102017,10.21702585,128.59,128.56,0.03]
[1744679102208,29.15099785,128.57,128.56,0.03]
[1744679102597,7.7778,128.57,128.56,0.03]
[1744679104304,0.28432314,128.56,128.5,0.03]
[1744679104500,17.99842585,128.51,128.5,0.03]
[1744679104710,36.93239785,128.51,128.5,0.03]
[1744679105294,18.933972,128.5,128.45,2.7826845]
[1744679105621,10.21702585,128.49,128.45,2.7826845]
[1744679105811,27.2351,128.51,128.46,10.21702585]
[1744679106012,37.45212585,128.51,128.46,10.21702585]
[1744679106318,10.21702585,128.5,128.45,12.99971035]
[1744679106830,7.7827,128.49,128.46,10.21702585]
[1744679106999,7.7814,128.51,128.48,10.21702585]
[1744679107203,19.2781,128.52,128.5,10.21702585]
[1744679107204,18.861,128.52,128.5,10.21702585]
[1744679107830,18.861,128.52,128.49,10.21702585]
[1744679108123,18.861,128.52,128.48,10.21702585]
[1744679108296,11.08,128.52,128.5,10.21702585]
[1744679109826,18.8611,128.52,128.49,10.21702585]
[1744679110321,18.861,128.52,128.5,10.21702585]
[1744679110522,18.861,128.52,128.49,10.21702585]
[1744679111606,11.08,128.52,128.5,10.21702585]
[1744679111922,18.8609,128.52,128.5,10.21702585]
[1744679112131,18.8609,128.52,128.48,10.21702585]
[1744679112628,18.8609,128.52,128.49,10.21702585]
[1744679113129,18.8609,128.52,128.46,10.21702585]
[1744679113332,18.8609,128.52,128.49,10.21702585]
[1744679113829,18.8609,128.52,128.46,18.00132585]
[1744679114131,18.8609,128.52,128.49,10.21702585]
[1744679114309,18.8609,128.52,128.48,10.21702585]
[1744679114506,18.933972,128.51,128.47,10.21702585]
[1744679114713,18.933972,128.51,128.45,2.7826845]
[1744679114714,29.15099785,128.49,128.45,12.99971035]
[1744679114913,10.21702585,128.48,128.45,2.7826845]
[1744679115114,29.15099785,128.49,128.45,2.7826845]
[1744679115327,10.21702585,128.5,128.45,12.99971035]
[1744679115635,10.21702585,128.5,128.46,10.21702585]
[1744679115932,7.7809,128.52,128.49,10.21702585]
[1744679116228,11.08,128.52,128.5,10.21702585]
[1744679116428,11.08,128.52,128.46,10.21702585]
[1744679116630,11.08,128.52,128.5,10.21702585]
[1744679116806,8.0351,128.55,128.51,10.21702585]
[1744679117010,1.637,128.55,128.54,10.21702585]
[1744679117318,11.08,128.56,128.54,10.21702585]
[1744679117621,14.0069,128.58,128.55,10.21702585]
[1744679117827,14.0069,128.58,128.56,10.21702585]
[1744679118535,51.115572,128.6,128.57,10.21702585]
[1744679118536,12.7412,128.6,128.57,10.21702585]